bitfinex-derivatives/quotes_BTCF0:USTF0_20250823
["timestamp","ask_amount","ask_price","bid_price","bid_amount"]
[1755956008677,1.02638218,115010.0,115000.0,0.72241577]
[1755956010674,1.00855218,115010.0,115000.0,0.70881846]
[1755956011284,1.01744809,115010.0,115000.0,0.70881846]
[1755956011481,1.01764809,115010.0,115000.0,0.79580366]
[1755956013181,1.03547809,115010.0,115000.0,0.79580366]
[1755956013984,1.03547809,115010.0,115000.0,0.70881846]
[1755956015078,1.52556655,115010.0,115000.0,0.70881846]
[1755956015678,1.52556655,115010.0,115000.0,0.21873]
[1755956015881,1.52556655,115010.0,115000.0,0.70881846]
[1755956017477,1.52556655,115010.0,115000.0,0.79580376]
[1755956018390,1.03547809,115010.0,115000.0,0.79580376]
[1755956018801,1.03547809,115010.0,115000.0,0.70881846]
[1755956019393,1.03547809,115010.0,115000.0,0.21873]
[1755956019595,1.52556655,115010.0,115000.0,0.21873]
[1755956019794,1.52556655,115010.0,115000.0,0.70881846]
[1755956020592,1.52556655,115010.0,115000.0,0.79580376]
[1755956021785,1.52556655,115010.0,115000.0,0.76248376]
[1755956021996,2.13716655,115010.0,115000.0,0.002]
[1755956023089,2.13616655,115010.0,115000.0,0.001]
[1755956023282,1.64707809,115010.0,115000.0,0.001]
[1755956023486,2.13716655,115010.0,115000.0,0.001]
[1755956024984,0.1010053,115000.0,114990.0,0.05477]
[1755956025184,0.96972376,115000.0,114990.0,0.10165]
[1755956025386,0.98903013,115000.0,114990.0,0.11747]
[1755956025585,1.01228955,115000.0,114990.0,0.11747]
[1755956026092,1.01328955,115000.0,114990.0,0.11747]
[1755956026301,1.01528955,115000.0,114990.0,0.11847]
[1755956027097,0.52520109,115000.0,114990.0,0.11847]
[1755956027298,1.01528955,115000.0,114990.0,0.11847]
[1755956028099,0.99598318,115000.0,114990.0,0.2054629]
[1755956028597,0.99598318,115000.0,114990.0,0.11847]
[1755956028998,0.50589472,115000.0,114990.0,0.11847]
[1755956029201,0.99598318,115000.0,114990.0,0.11847]
[1755956029899,0.99598318,115000.0,114990.0,0.2054629]
[1755956030900,0.50589472,115000.0,114990.0,0.69555136]
[1755956031098,0.99598318,115000.0,114990.0,0.69555136]
[1755956031496,0.99598318,115000.0,114990.0,0.2054629]
[1755956032093,0.54919788,115000.0,114990.0,0.69555136]
[1755956032296,0.05910942,115000.0,114990.0,0.2054629]
[1755956032497,0.63618318,115000.0,114990.0,0.69555136]
[1755956032694,0.63618318,115000.0,114990.0,0.2054629]
[1755956032893,0.14609472,115000.0,114990.0,0.2054629]
[1755956033100,0.63618318,115000.0,114990.0,0.2054629]
[1755956034095,0.14609472,115000.0,114990.0,0.2054629]
[1755956034493,0.63618318,115000.0,114990.0,0.2054629]
[1755956035194,0.54919788,115000.0,114990.0,0.2054629]
[1755956035397,0.65519203,115000.0,114990.0,0.001]
[1755956035607,0.1490235,114970.0,114960.0,0.0316]
[1755956035797,1.45003196,114970.0,114960.0,0.06369]
[1755956035996,1.45003196,114970.0,114960.0,0.04520115]
[1755956036602,1.47329138,114970.0,114960.0,0.07729115]
[1755956036801,1.47329138,114970.0,114960.0,0.09311115]
[1755956037101,1.47529138,114970.0,114960.0,0.07951]
[1755956037498,1.47329138,114970.0,114960.0,0.07951]
[1755956037704,1.47529138,114970.0,114960.0,0.11689]
[1755956038399,0.98520292,114970.0,114960.0,0.11689]
[1755956038601,0.98620292,114970.0,114960.0,0.11689]
[1755956039300,0.98620292,114970.0,114960.0,0.10303]
[1755956039802,1.47691679,114970.0,114960.0,0.02352]
[1755956040005,0.1496055,114960.0,114950.0,0.44979164]
[1755956040205,0.1496055,114960.0,114950.0,0.49549164]
[1755956040502,0.1264355,114960.0,114950.0,0.83251454]
[1755956040708,0.15828338,114960.0,114950.0,0.83251454]
[1755956040907,0.99181338,114960.0,114950.0,0.83251454]
[1755956041506,0.99381338,114960.0,114950.0,0.83251454]
[1755956042501,0.99481338,114960.0,114950.0,0.83251454]
[1755956042696,0.99481338,114960.0,114950.0,0.46365164]
[1755956042906,0.99481338,114960.0,114950.0,0.49549164]
[1755956043308,0.99481338,114960.0,114950.0,0.44979164]
[1755956043704,0.087023,114950.0,114940.0,0.03295]
[1755956043903,1.00112687,114950.0,114940.0,0.01360364]
[1755956044206,0.1349205,114940.0,114930.0,0.01788193]
[1755956044402,1.79683437,114940.0,114930.0,0.01788193]
[1755956044707,0.1115081,114930.0,114920.0,0.05609]
[1755956044896,0.1349357,114920.0,114910.0,0.44588]
[1755956045202,0.03832,114920.0,114910.0,0.5647733]
[1755956045403,0.81956,114920.0,114910.0,0.9155733]
[1755956045597,1.03345977,114920.0,114910.0,0.44588]
[1755956045799,1.03776313,114920.0,114910.0,0.47772]
[1755956045995,0.0870533,114910.0,114900.0,0.36088]
[1755956046200,0.13502748,114910.0,114900.0,0.4778]
[1755956046500,0.05646518,114910.0,114900.0,0.56562887]
[1755956046706,0.1667779,114910.0,114900.0,0.39383]
[1755956047014,0.0701546,114910.0,114900.0,0.5648609]
[1755956047307,0.0701546,114910.0,114900.0,0.6648609]
[1755956047507,0.1592079,114910.0,114900.0,0.4778]
[1755956047818,0.1687779,114910.0,114900.0,0.4778]
[1755956048006,0.1592079,114910.0,114900.0,0.5648609]
[1755956048412,0.02525942,114910.0,114900.0,1.30637477]
[1755956048604,0.81196,114920.0,114910.0,0.1582733]
[1755956048813,0.94164345,114930.0,114920.0,0.2039657]
[1755956049008,0.06153,114960.0,114950.0,0.158243]
[1755956049308,0.04622,114960.0,114950.0,0.564743]
[1755956049819,0.1584854,114960.0,114950.0,0.47772]
[1755956050209,0.1737954,114960.0,114950.0,0.47772]
[1755956050503,1.28487927,114960.0,114940.0,0.03180065]
[1755956050709,0.996413,114950.0,114940.0,0.05089065]
[1755956051014,1.55780835,114950.0,114940.0,0.05089065]
[1755956051514,1.05752448,114950.0,114940.0,0.58269115]
[1755956051812,1.01696448,114950.0,114940.0,0.58269115]
[1755956052004,1.04221448,114950.0,114940.0,0.58269115]
[1755956052410,0.95519148,114950.0,114940.0,0.58269115]
[1755956053010,1.04521448,114950.0,114940.0,0.49766065]
[1755956053209,1.54549835,114950.0,114940.0,0.46582065]
[1755956053416,1.90629835,114950.0,114940.0,0.04346065]
[1755956054007,1.41558448,114950.0,114940.0,0.07603065]
[1755956054205,1.41558448,114950.0,114940.0,0.13686065]
[1755956054508,0.97350148,114950.0,114940.0,0.49766065]
[1755956055013,0.949283,114950.0,114940.0,0.58469115]
[1755956055315,0.974533,114950.0,114940.0,0.58469115]
[1755956056212,0.122393,114950.0,114940.0,0.93469115]
[1755956056406,1.09295735,114950.0,114930.0,0.3608]
[1755956056709,1.09295735,114950.0,114910.0,0.11692]
[1755956056710,0.0870457,114920.0,114910.0,0.11692]
[1755956056898,0.9026857,114920.0,114910.0,0.21692]
[1755956057101,1.2634857,114920.0,114910.0,0.21692]
[1755956057306,1.2634857,114920.0,114910.0,0.02352]
[1755956057307,1.75419957,114920.0,114910.0,0.02352]
[1755956057513,1.2634857,114920.0,114910.0,0.10179]
[1755956057811,1.2634857,114920.0,114910.0,0.08793]
[1755956058010,1.2654857,114920.0,114910.0,0.08793]
[1755956058406,1.75619957,114920.0,114910.0,0.08793]
[1755956058804,1.75619957,114920.0,114910.0,0.02352]
[1755956059014,1.75719957,114920.0,114910.0,0.02352]
[1755956060010,0.9056857,114920.0,114910.0,0.10179]
[1755956060209,0.9056857,114920.0,114910.0,0.11692]
[1755956060410,0.9056857,114920.0,114910.0,0.3039733]
[1755956060712,0.9056857,114920.0,114910.0,0.21692]
[1755956061312,0.9056857,114920.0,114910.0,0.11692]
[1755956061611,1.2664857,114920.0,114910.0,0.11692]
[1755956061917,1.75719957,114920.0,114910.0,0.05609]
[1755956063016,1.75719957,114920.0,114910.0,0.03295]
[1755956063216,1.75719957,114920.0,114910.0,0.05609]
[1755956063419,1.2664857,114920.0,114910.0,0.10179]
[1755956064723,1.2664857,114920.0,114910.0,0.1888432]
[1755956064922,0.9056857,114920.0,114910.0,0.44588]
[1755956065217,0.9056857,114920.0,114910.0,0.05609]
[1755956065417,1.2664857,114920.0,114910.0,0.05609]
[1755956065614,1.2664857,114920.0,114910.0,0.03295]
[1755956066723,1.2664857,114920.0,114910.0,0.02352]
[1755956067122,1.2666057,114920.0,114910.0,0.1749832]
[1755956067319,1.2666057,114920.0,114910.0,0.2039732]
[1755956067620,0.9058057,114920.0,114910.0,0.2039732]
[1755956067819,0.9058057,114920.0,114910.0,0.5647732]
[1755956068010,0.003,114920.0,114910.0,0.8147732]
[1755956068216,0.003,114920.0,114910.0,0.9147732]
[1755956069722,1.2635069,114950.0,114940.0,0.2043105]
[1755956070722,1.75422077,114950.0,114940.0,0.2043105]
[1755956070923,1.75418077,114950.0,114940.0,0.2043105]
[1755956071127,0.81536,114950.0,114940.0,0.2043105]
[1755956071417,0.81536,114950.0,114940.0,0.5661105]
[1755956071623,0.8168,114950.0,114940.0,0.5661105]
[1755956072026,0.001,114950.0,114940.0,0.9161105]
[1755956072220,0.0880229,114950.0,114940.0,0.8161105]
[1755956072410,0.0880229,114950.0,114940.0,0.9161105]
[1755956072616,0.81864,114950.0,114940.0,0.9161105]
[1755956072813,1.2664629,114950.0,114940.0,0.08659]
[1755956073018,1.2664629,114950.0,114940.0,0.07209]
[1755956073218,1.5164629,114950.0,114940.0,0.001]
[1755956073424,1.5172629,114950.0,114940.0,0.001]
[1755956073817,2.13073742,114950.0,114940.0,0.001]
[1755956075228,2.12993742,114950.0,114940.0,0.001]
[1755956075424,1.5164629,114950.0,114940.0,0.02467]
[1755956075622,1.2668229,114950.0,114940.0,0.02467]
[1755956076322,1.5176229,114950.0,114940.0,0.001]
[1755956076627,0.1031781,114930.0,114920.0,0.01745893]
[1755956076816,1.89329262,114930.0,114920.0,0.01745893]
[1755956077728,1.89429262,114930.0,114920.0,0.01745893]
[1755956077930,0.9142081,114930.0,114920.0,0.11106893]
[1755956078326,1.2750081,114930.0,114920.0,0.11106893]
[1755956078629,1.2812181,114930.0,114920.0,0.01745893]
[1755956079027,1.2812181,114930.0,114900.0,0.51170818]
[1755956079028,0.0870532,114910.0,114900.0,0.65912818]
[1755956079230,0.0860532,114910.0,114900.0,0.65912818]
[1755956079629,0.0860532,114910.0,114900.0,0.68279818]
[1755956079826,0.0969807,114920.0,114910.0,0.2043332]
[1755956080533,0.4577807,114920.0,114910.0,0.2043332]
[1755956081334,0.0979807,114920.0,114910.0,0.2043332]
[1755956081833,0.4587807,114920.0,114910.0,0.4543332]
[1755956082338,0.0979807,114920.0,114910.0,0.4543332]
[1755956082840,0.1061907,114920.0,114910.0,0.36728]
[1755956083339,0.1061907,114920.0,114910.0,0.11728]
[1755956085435,0.3561907,114920.0,114910.0,0.02367]
[1755956085629,0.1031932,114910.0,114900.0,0.10172695]
[1755956085828,0.1267108,114900.0,114890.0,8e-05]
[1755956086030,1.12003213,114900.0,114890.0,0.01361071]
[1755956086226,0.1706884,114890.0,114880.0,0.07797695]
[1755956086431,0.1302535,114870.0,114860.0,0.56394083]
[1755956086635,0.9481735,114870.0,114860.0,0.5415011]
[1755956087330,0.9481735,114870.0,114860.0,0.45441]
[1755956087633,0.9501735,114870.0,114860.0,0.5415011]
[1755956087824,0.9501735,114870.0,114860.0,0.5651711]
[1755956088029,0.9501735,114870.0,114860.0,0.47808]
[1755956088233,0.9501735,114870.0,114860.0,0.11728]
[1755956088234,0.9908235,114870.0,114860.0,0.11728]
[1755956088537,1.42179683,114870.0,114860.0,0.11728]
[1755956090140,1.39854683,114870.0,114860.0,0.11728]
[1755956090641,1.42159683,114870.0,114860.0,0.11728]
[1755956091935,1.43042337,114870.0,114860.0,0.11728]
[1755956092132,1.43042337,114870.0,114860.0,0.2043707]
[1755956092133,0.97640004,114870.0,114860.0,0.2043707]
[1755956092336,0.97616004,114870.0,114860.0,0.5651707]
[1755956092932,0.97616004,114870.0,114860.0,0.11728]
[1755956093133,0.99921004,114870.0,114860.0,0.11728]
[1755956093340,1.42801701,114870.0,114860.0,0.11728]
[1755956093538,0.61053701,114870.0,114860.0,0.11728]
[1755956093736,1.06721701,114870.0,114860.0,0.11728]
[1755956095837,0.24973701,114870.0,114860.0,0.11728]
[1755956096144,1.06761701,114870.0,114860.0,0.11728]
[1755956096343,1.06753701,114870.0,114860.0,0.11728]
[1755956096542,1.42833701,114870.0,114860.0,0.11728]
[1755956096737,1.06753701,114870.0,114860.0,0.11728]
[1755956097344,0.22668701,114870.0,114860.0,0.11728]
[1755956097643,1.06719701,114870.0,114860.0,0.11728]
[1755956098346,1.06719701,114870.0,114860.0,0.2043708]
[1755956098544,1.06719701,114870.0,114860.0,0.11728]
[1755956098842,1.06719701,114870.0,114860.0,0.2043709]
[1755956100234,0.003,114870.0,114860.0,0.9151709]
[1755956100439,0.003,114870.0,114860.0,1.49456757]
[1755956100638,0.003,114870.0,114860.0,1.59456757]
[1755956101046,0.003,114870.0,114860.0,1.10222962]
[1755956101641,0.003,114870.0,114860.0,1.50222962]
[1755956101841,0.003,114870.0,114860.0,1.60222962]
[1755956102041,1.01712827,114890.0,114880.0,0.1353257]
[1755956102245,1.01712827,114890.0,114880.0,0.2079157]
[1755956103145,1.01712827,114890.0,114880.0,0.12084]
[1755956103352,0.23714827,114890.0,114880.0,0.08725]
[1755956103546,1.06646824,114890.0,114880.0,0.08825]
[1755956104152,1.06646824,114890.0,114880.0,0.07271]
[1755956104649,1.06646824,114890.0,114880.0,0.1933757]
[1755956104854,0.01838,114890.0,114880.0,0.5697157]
[1755956105042,0.003,114890.0,114880.0,0.8197157]
[1755956105244,0.1709681,114890.0,114880.0,0.5697157]
[1755956105445,0.1709681,114890.0,114880.0,1.0697157]
[1755956105652,0.003,114890.0,114880.0,1.3197157]
[1755956105846,0.0900681,114890.0,114880.0,1.3197157]
[1755956106039,0.003,114890.0,114880.0,1.3197157]
[1755956106245,0.003,114890.0,114880.0,2.22178564]
[1755956106855,0.1709681,114890.0,114880.0,1.0697157]
[1755956107259,1.3498881,114890.0,114880.0,0.58825]
[1755956107643,0.5317681,114890.0,114880.0,0.58825]
[1755956107947,1.3502881,114890.0,114880.0,0.62184]
[1755956108354,1.3502881,114890.0,114880.0,0.12184]
[1755956108553,1.3502881,114890.0,114880.0,0.2089157]
[1755956108860,0.5317681,114890.0,114880.0,0.2089157]
[1755956109445,0.1274481,114890.0,114880.0,0.5697157]
[1755956109645,0.0900681,114890.0,114880.0,0.5697157]
[1755956109948,0.003,114890.0,114880.0,0.5697157]
[1755956110153,0.0900681,114890.0,114880.0,0.6697157]
[1755956110452,0.0900681,114890.0,114880.0,1.1697157]
[1755956111346,0.1709681,114890.0,114880.0,1.3197157]
[1755956111554,0.1709681,114890.0,114880.0,1.0697157]
[1755956111951,0.7817681,114890.0,114880.0,0.001]
[1755956113956,0.5317681,114890.0,114880.0,0.001]
[1755956114152,0.7817681,114890.0,114880.0,0.1063]
[1755956114859,0.7817681,114890.0,114880.0,0.001]
[1755956117664,0.7817681,114890.0,114880.0,0.02542]
[1755956118163,0.7817681,114890.0,114880.0,0.001]
[1755956118666,0.5317681,114890.0,114880.0,0.001]
[1755956122765,0.1679843,114870.0,114860.0,0.03408]
[1755956122955,1.3457443,114870.0,114860.0,0.10239695]
[1755956123155,0.1244719,114860.0,114850.0,0.20081322]
[1755956123355,0.5287919,114860.0,114850.0,0.20081322]
[1755956123669,0.5287919,114860.0,114850.0,0.21635322]
[1755956123881,0.5287919,114860.0,114850.0,0.13837627]
[1755956124067,0.5277919,114860.0,114850.0,0.08725]
[1755956124272,0.5267919,114860.0,114850.0,0.10239695]
[1755956124469,0.5267919,114860.0,114850.0,0.02442]
[1755956124674,0.5267919,114860.0,114850.0,0.03408]
[1755956125982,0.1679995,114850.0,114840.0,0.12084]
[1755956126183,0.5287995,114850.0,114840.0,0.12084]
[1755956127274,0.5307995,114850.0,114840.0,0.12084]
[1755956127771,0.1709995,114850.0,114840.0,0.12084]
[1755956127979,0.5317995,114850.0,114840.0,0.12084]
[1755956129180,0.1709995,114850.0,114840.0,0.2079471]
[1755956129381,0.1482095,114850.0,114840.0,0.2079471]
[1755956130079,0.1724995,114850.0,114840.0,0.2079471]
[1755956131990,0.06111,114850.0,114840.0,0.6687471]
[1755956132186,0.003,114850.0,114840.0,0.9195471]
[1755956132392,0.1735539,114880.0,114870.0,0.11809]
[1755956132588,0.1735539,114880.0,114870.0,0.19618878]
[1755956132794,0.1735539,114880.0,114860.0,0.27112071]
[1755956132795,0.1255343,114870.0,114860.0,0.27112071]
[1755956133097,0.1735543,114870.0,114860.0,0.18279071]
[1755956133389,1.27605192,114870.0,114860.0,0.01760013]
[1755956133595,0.1735619,114860.0,114850.0,0.10277654]
[1755956134194,0.5333619,114860.0,114850.0,0.10277654]
[1755956134386,0.1725619,114860.0,114850.0,0.10277654]
[1755956134587,0.5333619,114860.0,114850.0,0.02466]
[1755956135185,0.5353619,114860.0,114850.0,0.02566]
[1755956135796,1.3533219,114860.0,114850.0,0.02566]
[1755956135994,1.3533219,114860.0,114850.0,0.10377654]
[1755956136492,0.9925219,114860.0,114850.0,0.28430604]
[1755956137485,0.9935219,114860.0,114850.0,0.28530604]
[1755956137684,0.9935219,114860.0,114850.0,0.11474654]
[1755956138383,0.9935219,114860.0,114850.0,0.20184604]
[1755956138887,1.3543219,114860.0,114850.0,0.20184604]
[1755956139496,1.3543219,114860.0,114850.0,0.25554604]
[1755956139689,1.3543219,114860.0,114850.0,0.26972604]
[1755956140089,0.9935219,114860.0,114850.0,0.26972604]
[1755956140596,1.3543219,114860.0,114850.0,0.1916095]
[1755956141194,1.3543219,114860.0,114850.0,0.1237295]
[1755956142291,1.3543219,114860.0,114850.0,0.002]
[1755956142792,1.84601952,114860.0,114850.0,0.002]
[1755956143100,2.09601952,114860.0,114850.0,0.002]
[1755956143392,2.09601952,114860.0,114830.0,0.13433601]
[1755956143393,0.1715695,114850.0,114830.0,0.13433601]
[1755956143592,1.84763462,114840.0,114830.0,0.14203947]
[1755956143787,1.36463214,114840.0,114830.0,0.19561198]
[1755956144189,1.36463214,114840.0,114830.0,0.22027198]
[1755956144401,1.36463214,114840.0,114830.0,0.23024198]
[1755956144791,1.36463214,114840.0,114830.0,0.23124198]
[1755956144991,1.36663214,114840.0,114830.0,0.15400947]
[1755956145893,1.36663214,114840.0,114830.0,0.23224198]
[1755956146494,1.36663214,114840.0,114830.0,0.15400947]
[1755956147199,1.36663214,114840.0,114830.0,0.15300947]
[1755956147503,1.36763214,114840.0,114830.0,0.15300947]
[1755956147694,1.36763214,114840.0,114830.0,0.20670947]
[1755956147891,0.15873468,114840.0,114830.0,0.57358407]
[1755956148091,0.128557,114840.0,114830.0,1.6043142]
[1755956148287,0.003,114840.0,114830.0,1.6051142]
[1755956148487,0.003,114840.0,114830.0,1.52688169]
[1755956148901,0.134447,114840.0,114830.0,0.93438407]
[1755956149203,0.174577,114840.0,114830.0,0.93438407]
[1755956149501,0.174577,114840.0,114830.0,0.57358407]
[1755956149704,0.174577,114840.0,114830.0,0.48646947]
[1755956150089,0.174577,114840.0,114830.0,0.57358387]
[1755956150297,0.174577,114840.0,114830.0,0.48646947]
[1755956150692,0.174577,114840.0,114830.0,0.23646947]
[1755956150898,0.174577,114840.0,114830.0,0.20411947]
[1755956151094,0.174577,114840.0,114830.0,0.23646947]
[1755956151298,0.535377,114840.0,114830.0,0.31470198]
[1755956151504,0.535377,114840.0,114830.0,0.23646947]
[1755956151889,0.535377,114840.0,114830.0,0.31470198]
[1755956152094,0.535377,114840.0,114830.0,0.40181638]
[1755956152401,0.174577,114840.0,114830.0,0.40181638]
[1755956153294,0.174577,114840.0,114830.0,0.23646947]
[1755956153603,0.24420429,114840.0,114830.0,0.23646947]
[1755956154311,0.24420429,114840.0,114830.0,0.20411947]
[1755956154500,0.24420429,114840.0,114830.0,0.18853947]
[1755956154699,0.24420429,114840.0,114830.0,0.26677198]
[1755956155200,0.60500429,114840.0,114830.0,0.17435947]
[1755956155801,0.60500429,114840.0,114830.0,0.25259767]
[1755956157902,0.60500429,114840.0,114830.0,0.15259767]
[1755956159002,0.60500429,114840.0,114830.0,0.18526767]
[1755956159302,0.60500429,114840.0,114830.0,0.10702947]
[1755956159604,0.60500429,114840.0,114830.0,0.12132947]
[1755956159900,1.09670191,114840.0,114830.0,0.001]
[1755956160503,0.60500429,114840.0,114830.0,0.02389]
[1755956160700,0.60500429,114840.0,114830.0,0.08788]
[1755956160900,0.60500429,114840.0,114830.0,0.03344]
[1755956161103,0.60300429,114840.0,114830.0,0.03244]
[1755956161307,0.60400429,114840.0,114830.0,0.03244]
[1755956161604,0.60500429,114840.0,114830.0,0.03244]
[1755956161994,0.1711344,114830.0,114820.0,0.22430774]
[1755956162201,1.3567744,114830.0,114820.0,0.20819774]
[1755956162407,1.3567744,114830.0,114820.0,0.24086774]
[1755956162598,1.3567744,114830.0,114820.0,0.20819774]
[1755956162800,1.84847202,114830.0,114820.0,0.20819774]
[1755956163312,1.3567744,114830.0,114820.0,0.20819774]
[1755956163601,1.84847202,114830.0,114820.0,0.19163774]
[1755956163809,1.3587744,114830.0,114820.0,0.19163774]
[1755956164009,1.3597744,114830.0,114820.0,0.19163774]
[1755956164212,1.37930552,114830.0,114820.0,0.19163774]
[1755956164407,1.37930552,114830.0,114820.0,0.22430774]
[1755956165407,1.37930552,114830.0,114820.0,0.20819774]
[1755956165804,1.35516552,114830.0,114820.0,0.24086774]
[1755956166110,0.38333112,114830.0,114820.0,1.17048806]
[1755956166311,0.51407622,114830.0,114820.0,0.56910594]
[1755956166507,0.55446622,114830.0,114820.0,0.34086774]
[1755956166712,0.19366622,114830.0,114820.0,0.31907199]
[1755956166914,0.19366622,114830.0,114820.0,0.86699469]
[1755956167217,0.16952622,114830.0,114820.0,0.86699469]
[1755956167419,0.10964622,114830.0,114820.0,0.86699469]
[1755956167603,0.13137622,114830.0,114820.0,0.86699469]
[1755956168008,0.16952622,114830.0,114820.0,0.67987199]
[1755956168212,0.19366622,114830.0,114820.0,0.67987199]
[1755956168408,0.16952622,114830.0,114820.0,0.67987199]
[1755956168813,0.16952622,114830.0,114820.0,0.76699479]
[1755956169018,0.13137622,114830.0,114820.0,0.76699479]
[1755956169217,0.003,114830.0,114820.0,1.60949241]
[1755956169421,0.003,114830.0,114820.0,1.70949241]
[1755956169609,0.36561,114850.0,114840.0,0.0871076]
[1755956169815,0.19864637,114860.0,114850.0,0.20484]
[1755956170115,1.03244637,114860.0,114850.0,0.28304425]
[1755956170316,1.03244637,114860.0,114850.0,0.64384425]
[1755956171214,1.03244637,114860.0,114850.0,0.47854]
[1755956171619,1.00830637,114860.0,114850.0,0.47854]
[1755956171815,0.17891637,114860.0,114850.0,0.56564]
[1755956172122,0.20164637,114860.0,114850.0,0.56564]
[1755956172424,0.2104948,114860.0,114850.0,0.56564]
[1755956172623,0.20164637,114860.0,114850.0,0.56564]
[1755956172811,0.17750637,114860.0,114850.0,0.56564]
[1755956173319,0.17750637,114860.0,114850.0,0.02289]
[1755956173320,0.82099272,114860.0,114850.0,0.02289]
[1755956173620,0.17893,114850.0,114840.0,0.47854]
[1755956174017,1.01353,114850.0,114840.0,0.47854]
[1755956174827,1.01453,114850.0,114840.0,0.47954]
[1755956175017,0.0901,114850.0,114840.0,0.5696476]
[1755956175218,0.92474,114850.0,114840.0,1.06134522]
[1755956175521,0.0901,114850.0,114840.0,1.06134522]
[1755956175719,0.003,114850.0,114840.0,1.31134522]
[1755956176226,0.003,114850.0,114840.0,1.38954947]
[1755956176525,0.003,114850.0,114840.0,1.98954947]
[1755956176818,0.09563905,114860.0,114850.0,0.13498]
[1755956177023,0.0870927,114860.0,114850.0,1.05733762]
[1755956177322,0.0870927,114860.0,114850.0,1.13554187]
[1755956177522,0.0870927,114860.0,114850.0,1.05733762]
[1755956177719,0.0870927,114860.0,114850.0,0.64382604]
[1755956177923,0.14739379,114860.0,114850.0,0.55672604]
[1755956178124,0.18878379,114860.0,114850.0,0.55772604]
[1755956178313,0.19078379,114860.0,114850.0,0.55872604]
[1755956180135,0.1577827,114860.0,114850.0,0.64582604]
[1755956180927,0.16638448,114860.0,114850.0,0.64582604]
[1755956181322,0.16638448,114860.0,114850.0,0.55872604]
[1755956181516,0.003,114860.0,114850.0,0.64582604]
[1755956181722,0.003,114860.0,114850.0,1.05933762]
[1755956182123,0.0900924,114860.0,114850.0,0.56764]
[1755956182323,0.1819224,114860.0,114850.0,0.64582604]
[1755956183327,0.19051457,114860.0,114850.0,0.64582604]
[1755956184029,0.16637457,114860.0,114850.0,0.64582604]
[1755956184926,1.31306748,114860.0,114850.0,0.002]
[1755956185534,0.130068,114840.0,114830.0,0.06422453]
[1755956185728,1.374018,114840.0,114830.0,0.09689453]
[1755956186236,1.44477414,114840.0,114830.0,0.09689453]
[1755956188029,1.44677414,114840.0,114830.0,0.09889453]
[1755956188433,2.55027176,114840.0,114830.0,0.003]
[1755956189336,2.05857414,114840.0,114830.0,0.003]
[1755956189839,2.05857414,114840.0,114830.0,0.002]
[1755956190030,2.30027176,114840.0,114830.0,0.002]
[1755956190338,2.31939221,114840.0,114830.0,0.002]
[1755956191341,0.1289255,114830.0,114820.0,0.02312774]
[1755956191540,0.5384155,114830.0,114820.0,0.14714774]
[1755956192240,0.5384155,114830.0,114820.0,0.15707774]
[1755956192434,0.5384155,114830.0,114820.0,0.13305774]
[1755956192640,0.5394155,114830.0,114820.0,0.05807774]
[1755956192839,0.5394155,114830.0,114820.0,0.11400774]
[1755956193136,0.5394155,114830.0,114820.0,0.14396774]
[1755956193333,1.3748955,114830.0,114820.0,0.14596774]
[1755956193733,1.3748955,114830.0,114820.0,0.06007774]
[1755956193932,1.3748955,114830.0,114820.0,0.05014774]
[1755956194131,1.3748955,114830.0,114820.0,0.06007774]
[1755956194738,1.3748955,114830.0,114820.0,0.11600774]
[1755956195539,1.3748955,114830.0,114820.0,0.11400774]
[1755956196243,1.3748955,114830.0,114820.0,0.05807774]
[1755956198241,1.3748955,114830.0,114820.0,0.09179774]
[1755956198845,1.3748955,114830.0,114820.0,0.05807774]
[1755956199337,0.0871303,114810.0,114800.0,0.1106667]
[1755956199538,2.22648792,114810.0,114800.0,0.13119211]
[1755956199841,3.72648792,114810.0,114800.0,0.03119211]
[1755956200341,0.1309479,114800.0,114790.0,0.08077]
[1755956200536,0.5404379,114800.0,114790.0,0.18077]
[1755956200743,0.5404379,114800.0,114790.0,0.19582]
[1755956200946,0.54935272,114800.0,114790.0,0.19582]
[1755956201455,0.54935272,114800.0,114790.0,0.21984]
[1755956201745,1.04105034,114800.0,114790.0,0.21984]
[1755956202046,0.54935272,114800.0,114790.0,0.21984]
[1755956202737,1.38467272,114800.0,114790.0,0.21984]
[1755956203252,1.38567272,114800.0,114790.0,0.16586]
[1755956203442,1.38567272,114800.0,114790.0,0.18077]
[1755956203642,1.38567272,114800.0,114790.0,0.20479]
[1755956206246,1.38567272,114800.0,114790.0,0.13214]
[1755956206938,1.38567272,114800.0,114790.0,0.16586]
[1755956207246,1.38567272,114800.0,114790.0,0.13214]
[1755956207444,1.40521719,114800.0,114790.0,0.13214]
[1755956208040,1.40521719,114800.0,114790.0,0.18077]
[1755956208547,1.40521719,114800.0,114790.0,0.21984]
[1755956211042,1.40521719,114800.0,114790.0,0.1]
[1755956212351,1.40521719,114800.0,114790.0,0.11362256]
[1755956212548,1.40521719,114800.0,114790.0,0.12355256]
[1755956213149,1.40521719,114800.0,114790.0,0.10993]
[1755956213347,1.40521719,114800.0,114790.0,0.14576255]
[1755956213553,1.38567272,114800.0,114790.0,0.21177658]
[1755956214150,1.38567272,114800.0,114790.0,0.25084658]
[1755956214350,1.38567272,114800.0,114790.0,0.21320403]
[1755956214535,1.38567272,114800.0,114790.0,0.23722403]
[1755956215348,1.38567272,114800.0,114790.0,0.25084658]
[1755956216045,0.16682272,114800.0,114790.0,1.2912896]
[1755956216247,0.99650272,114800.0,114790.0,1.27766705]
[1755956216453,1.01823272,114800.0,114790.0,1.17766705]
[1755956216746,1.01823272,114800.0,114790.0,0.23722403]
[1755956216953,1.02123272,114800.0,114790.0,0.68516943]
[1755956217557,1.02123272,114800.0,114790.0,0.78516943]
[1755956217743,1.02123272,114800.0,114790.0,0.68516943]
[1755956217948,1.02123272,114800.0,114790.0,0.78516943]
[1755956218244,1.02123272,114800.0,114790.0,0.68516943]
[1755956218446,0.003,114800.0,114790.0,1.42766705]
[1755956218751,0.0901379,114800.0,114790.0,1.62686705]
[1755956218943,0.1809279,114800.0,114790.0,0.78516953]
[1755956219148,0.1809279,114800.0,114790.0,0.68516953]
[1755956219643,0.1809279,114800.0,114790.0,1.18516953]
[1755956219847,0.0901379,114800.0,114790.0,1.77686715]
[1755956220054,0.0901379,114800.0,114790.0,1.87766715]
[1755956220252,0.4509285,114820.0,114790.0,2.95614715]
[1755956220459,0.0871285,114820.0,114810.0,0.69696792]
[1755956220860,0.09594466,114830.0,114820.0,0.2052627]
[1755956221053,0.09594466,114830.0,114820.0,1.38594636]
[1755956221248,0.09594466,114830.0,114820.0,0.89424874]
[1755956221557,0.18973466,114830.0,114820.0,0.8334501]
[1755956221758,0.18973466,114830.0,114820.0,0.9334501]